bitfinex/quotes_BTCUSD_20240728
["timestamp","ask_amount","ask_price","bid_price","bid_amount"]
[1722140855330,0.60578071,67925.0,67924.0,0.010108]
[1722140855557,0.59978071,67925.0,67924.0,0.009108]
[1722140855760,0.61278071,67925.0,67924.0,0.011108]
[1722140856124,0.61278071,67925.0,67924.0,0.010108]
[1722140856346,0.60578071,67925.0,67924.0,0.009108]
[1722140856538,0.60578071,67925.0,67924.0,0.011108]
[1722140856539,0.61878071,67925.0,67924.0,0.011108]
[1722140856697,0.61278071,67925.0,67924.0,0.010108]
[1722140856898,0.6288873,67925.0,67924.0,0.009108]
[1722140857102,0.6348873,67925.0,67924.0,0.010108]
[1722140857306,0.61178071,67925.0,67924.0,0.010108]
[1722140858776,0.61678071,67925.0,67924.0,0.010108]
[1722140859065,0.61078071,67925.0,67924.0,0.010108]
[1722140859283,1.03204344,67925.0,67924.0,0.010108]
[1722140860124,0.79649044,67925.0,67924.0,0.010108]
[1722140860496,0.81959729,67925.0,67924.0,0.010108]
[1722140861717,0.79649044,67925.0,67924.0,0.010108]
[1722140862153,0.73189044,67925.0,67924.0,0.010108]
[1722140862668,0.02523249,67925.0,67924.0,0.010108]
[1722140863116,0.016,67925.0,67924.0,0.010108]
[1722140863318,0.02515554,67925.0,67924.0,0.010108]
[1722140863519,0.01915554,67925.0,67924.0,0.009108]
[1722140863751,0.00915554,67925.0,67924.0,0.009108]
[1722140863967,0.02455473,67925.0,67924.0,0.009108]
[1722140864167,0.01539919,67925.0,67924.0,0.009108]
[1722140864390,0.02455473,67925.0,67924.0,0.009108]
[1722140864942,0.04766071,67925.0,67924.0,0.009108]
[1722140865154,0.04766071,67925.0,67924.0,0.598]
[1722140865155,0.02455473,67925.0,67924.0,0.598]
[1722140865348,0.02455473,67925.0,67924.0,0.362443]
[1722140865620,0.002,67925.0,67924.0,0.598]
[1722140865804,0.002,67925.0,67924.0,0.362443]
[1722140866005,0.01539919,67934.0,67927.0,0.117772]
[1722140866210,0.01539919,67934.0,67928.0,0.1193252]
[1722140866423,0.00918058,67933.0,67928.0,0.0015542]
[1722140867029,0.00918058,67933.0,67927.0,0.0015542]
[1722140867182,0.00166622,67928.0,67927.0,0.0025542]
[1722140867570,0.00917318,67928.0,67927.0,0.001]
[1722140867784,0.01539919,67934.0,67927.0,0.001]
[1722140867785,0.00166622,67931.0,67927.0,0.001]
[1722140868053,0.00166622,67931.0,67928.0,0.0015542]
[1722140868249,0.00166622,67929.0,67928.0,0.0015542]
[1722140868657,0.00066622,67928.0,67925.0,0.0015542]
[1722140868959,0.00166622,67930.0,67928.0,0.006]
[1722140869136,0.00166622,67932.0,67929.0,0.0015542]
[1722140869494,0.00166622,67932.0,67928.0,0.009]
[1722140869495,0.001,67929.0,67928.0,0.009]
[1722140869834,0.001,67929.0,67928.0,0.360314]
[1722140870419,0.001,67929.0,67928.0,0.501214]
[1722140870795,0.00084,67933.0,67931.0,0.117765]
[1722140871026,0.00084,67933.0,67932.0,0.0015542]
[1722140871406,0.00084,67933.0,67932.0,0.1193182]
[1722140871629,0.00084,67933.0,67932.0,0.117764]
[1722140872265,0.02394345,67933.0,67932.0,0.117764]
[1722140872466,0.02394345,67933.0,67932.0,0.121764]
[1722140873205,0.02394345,67933.0,67932.0,0.123764]
[1722140873339,0.00084,67933.0,67932.0,0.123764]
[1722140874939,0.00084,67933.0,67932.0,0.006]
[1722140875125,0.00084,67933.0,67932.0,0.0075542]
[1722140876494,0.46543507,67933.0,67932.0,0.006]
[1722140876631,0.25301231,67933.0,67932.0,0.006]
[1722140876836,0.46543507,67933.0,67932.0,0.006]
[1722140877041,0.22990907,67933.0,67932.0,0.006]
[1722140877499,0.46543507,67933.0,67932.0,0.006]
[1722140877671,0.4241574,67933.0,67932.0,0.006]
[1722140877999,0.46453675,67933.0,67932.0,0.006]
[1722140878225,0.04888153,67933.0,67932.0,0.006]
[1722140878437,0.00850218,67933.0,67932.0,0.006]
[1722140880046,0.03160589,67933.0,67932.0,0.006]
[1722140880449,0.00850218,67933.0,67932.0,0.006]
[1722140881621,0.16662167,67933.0,67932.0,0.006]
[1722140882029,0.04885867,67933.0,67932.0,0.006]
[1722140882440,0.00850218,67933.0,67932.0,0.006]
[1722140882752,0.04885824,67933.0,67932.0,0.006]
[1722140883198,0.16662124,67933.0,67932.0,0.006]
[1722140883379,0.16657325,67933.0,67932.0,0.006]
[1722140883557,0.04881025,67933.0,67932.0,0.006]
[1722140883754,0.07191404,67933.0,67932.0,0.006]
[1722140886629,0.03160597,67933.0,67932.0,0.006]
[1722140886788,0.07191433,67933.0,67932.0,0.006]
[1722140887839,0.07358055,67933.0,67932.0,0.006]
[1722140888568,0.27094355,67933.0,67932.0,0.006]
[1722140889118,0.25195155,67933.0,67932.0,0.006]
[1722140889322,0.47486358,67933.0,67932.0,0.006]
[1722140889551,0.25473677,67933.0,67932.0,0.006]
[1722140889750,0.25478002,67933.0,67932.0,0.006]
[1722140890170,0.25481314,67933.0,67932.0,0.006]
[1722140891370,0.49033914,67933.0,67932.0,0.006]
[1722140891702,0.13538392,67933.0,67932.0,0.006]
[1722140892023,0.13705014,67933.0,67932.0,0.006]
[1722140892225,0.25481314,67933.0,67932.0,0.006]
[1722140893001,1.13664909,67933.0,67932.0,0.006]
[1722140893419,1.13689418,67933.0,67932.0,0.006]
[1722140893766,0.588882,67925.0,67924.0,0.009108]
[1722140893966,0.59054822,67925.0,67924.0,0.009108]
[1722140894177,0.63109146,67925.0,67924.0,0.009108]
[1722140894354,0.77739146,67925.0,67924.0,0.009108]
[1722140895410,0.80049792,67925.0,67924.0,0.009108]
[1722140895795,0.80149792,67925.0,67924.0,0.015108]
[1722140896434,0.80149792,67925.0,67924.0,0.023108]
[1722140896435,0.56657205,67925.0,67924.0,0.023108]
[1722140897933,0.80212505,67925.0,67924.0,0.023108]
[1722140898278,0.56657205,67925.0,67924.0,0.023108]
[1722140899346,0.77901859,67925.0,67924.0,0.023108]
[1722140899529,0.54346559,67925.0,67924.0,0.023108]
[1722140899737,0.50329522,67925.0,67924.0,0.023108]
[1722140900094,0.54348122,67925.0,67924.0,0.023108]
[1722140900494,0.77903422,67925.0,67924.0,0.023108]
[1722140901019,1.05549695,67925.0,67924.0,0.023108]
[1722140901174,0.81994395,67925.0,67924.0,0.023108]
[1722140901395,1.05549695,67925.0,67924.0,0.023108]
[1722140901564,0.81994395,67925.0,67924.0,0.023108]
[1722140901766,1.05449695,67925.0,67924.0,0.017108]
[1722140902580,1.05349695,67925.0,67924.0,0.009108]
[1722140902874,1.05349695,67925.0,67924.0,0.011108]
[1722140903076,0.81727977,67925.0,67924.0,0.011108]
[1722140903279,0.81727977,67925.0,67924.0,0.009108]
[1722140903705,0.82427977,67925.0,67924.0,0.010108]
[1722140904715,0.82427977,67925.0,67924.0,0.011108]
[1722140904716,0.84767896,67925.0,67924.0,0.011108]
[1722140904925,0.8707852,67925.0,67924.0,0.011108]
[1722140905541,0.44802247,67925.0,67924.0,0.011108]
[1722140905950,0.68357547,67925.0,67924.0,0.011108]
[1722140906150,0.68361679,67925.0,67924.0,0.011108]
[1722140906775,0.66051055,67925.0,67924.0,0.011108]
[1722140907435,0.42495755,67925.0,67924.0,0.011108]
[1722140909497,0.42484539,67925.0,67924.0,0.011108]
[1722140909696,0.44795138,67925.0,67924.0,0.011108]
[1722140910305,0.68350438,67925.0,67924.0,0.011108]
[1722140910961,0.66039839,67925.0,67924.0,0.011108]
[1722140911148,0.42484539,67925.0,67924.0,0.011108]
[1722140912927,0.42472062,67925.0,67924.0,0.011108]
[1722140913207,0.38539441,67925.0,67924.0,0.011108]
[1722140913412,0.42483433,67925.0,67924.0,0.011108]
[1722140914268,0.44794073,67925.0,67924.0,0.011108]
[1722140915569,0.42483433,67925.0,67924.0,0.011108]
[1722140915767,0.41683433,67925.0,67924.0,0.010108]
[1722140915938,0.40983433,67925.0,67924.0,0.009108]
[1722140916138,0.41692433,67925.0,67924.0,0.010108]
[1722140916339,0.41692433,67925.0,67924.0,0.011108]
[1722140916340,0.42292433,67925.0,67924.0,0.011108]
[1722140917911,0.42296743,67925.0,67924.0,0.011108]
[1722140918114,0.18741443,67925.0,67924.0,0.011108]
[1722140918332,0.42296743,67925.0,67924.0,0.011108]
[1722140918766,0.44607396,67925.0,67924.0,0.011108]
[1722140919168,0.66862696,67925.0,67924.0,0.009108]
[1722140919383,0.67762696,67925.0,67924.0,0.009108]
[1722140919530,0.63805394,67925.0,67924.0,0.009108]
[1722140919740,0.67746454,67925.0,67924.0,0.009108]
[1722140919947,0.68146454,67925.0,67924.0,0.009108]
[1722140920743,0.67646454,67925.0,67924.0,0.009108]
[1722140921174,0.65835801,67925.0,67924.0,0.009108]
[1722140922978,0.65843502,67925.0,67924.0,0.009108]
[1722140923394,0.69940677,67925.0,67924.0,0.009108]
[1722140923972,0.93495977,67925.0,67924.0,0.009108]
[1722140924721,0.95806653,67925.0,67924.0,0.009108]
[1722140924860,0.93495977,67925.0,67924.0,0.009108]
[1722140925282,0.93502774,67925.0,67924.0,0.009108]
[1722140926013,0.93502774,67925.0,67924.0,0.019108]
[1722140926197,0.69898642,67925.0,67924.0,0.019108]
[1722140927838,0.72209306,67925.0,67924.0,0.019108]
[1722140929523,0.68247539,67925.0,67924.0,0.019108]
[1722140929727,0.72205843,67925.0,67924.0,0.019108]
[1722140932377,0.69895179,67925.0,67924.0,0.019108]
[1722140932956,0.69886938,67925.0,67924.0,0.019108]
[1722140933299,0.69876718,67925.0,67924.0,0.019108]
[1722140933460,0.46321418,67925.0,67924.0,0.019108]
[1722140933655,0.69876718,67925.0,67924.0,0.019108]
[1722140933866,0.46321418,67925.0,67924.0,0.019108]
[1722140935527,0.48632044,67925.0,67924.0,0.019108]
[1722140935702,0.48716044,67925.0,67924.0,0.019108]
[1722140935882,0.46405418,67925.0,67924.0,0.019108]
[1722140936078,0.46404498,67925.0,67924.0,0.019108]
[1722140939210,0.48715121,67925.0,67924.0,0.019108]
[1722140940486,0.46404498,67925.0,67924.0,0.019108]
[1722140941688,0.42465575,67925.0,67924.0,0.019108]
[1722140941917,0.46386979,67925.0,67924.0,0.019108]
[1722140943115,0.22831679,67925.0,67924.0,0.019108]
[1722140943627,0.46386979,67925.0,67924.0,0.019108]
[1722140943762,0.48697588,67925.0,67924.0,0.019108]
[1722140945053,0.46399667,67925.0,67924.0,0.019108]
[1722140946692,0.07024633,67925.0,67924.0,0.019108]
[1722140947853,0.09335217,67925.0,67924.0,0.019108]
[1722140948150,0.05401125,67925.0,67924.0,0.019108]
[1722140948356,0.07022546,67925.0,67924.0,0.019108]
[1722140948558,0.18800146,67925.0,67924.0,0.019108]
[1722140949825,0.42355446,67925.0,67924.0,0.019108]
[1722140950077,0.18800146,67925.0,67924.0,0.019108]
[1722140951571,0.1717875,67925.0,67924.0,0.019108]
[1722140951784,0.21099317,67925.0,67924.0,0.019108]
[1722140952206,0.21099603,67925.0,67924.0,0.019108]
[1722140952566,0.18788994,67925.0,67924.0,0.019108]
[1722140953376,0.42344294,67925.0,67924.0,0.019108]
[1722140954266,0.18788994,67925.0,67924.0,0.019108]
[1722140954872,0.18790982,67925.0,67924.0,0.019108]
[1722140956075,0.21101591,67925.0,67924.0,0.019108]
[1722140956279,0.18790982,67925.0,67924.0,0.019108]
[1722140957315,0.42346282,67925.0,67924.0,0.019108]
[1722140957528,0.07013382,67925.0,67924.0,0.019108]
[1722140958187,0.07018889,67925.0,67924.0,0.019108]
[1722140958567,0.06518889,67925.0,67924.0,0.019108]
[1722140958923,0.06818889,67925.0,67924.0,0.019108]
[1722140959121,0.18596489,67925.0,67924.0,0.019108]
[1722140959324,0.17796489,67925.0,67924.0,0.019108]
[1722140959525,0.20307098,67925.0,67924.0,0.019108]
[1722140959925,0.08329498,67925.0,67924.0,0.019108]
[1722140960155,0.08529498,67925.0,67924.0,0.019108]
[1722140960351,0.20007098,67925.0,67924.0,0.019108]
[1722140960758,0.06218889,67925.0,67924.0,0.019108]
[1722140960917,0.06052267,67925.0,67924.0,1.064857]
[1722140961129,0.02123919,67925.0,67924.0,1.064857]
[1722140961423,0.00584,67925.0,67924.0,1.064857]
[1722140961621,0.00284,67925.0,67924.0,1.064857]
[1722140962423,0.00384,67925.0,67924.0,0.7527]
[1722140962665,0.00484,67925.0,67924.0,0.996257]
[1722140962892,0.00484,67925.0,67924.0,0.7527]
[1722140963304,0.00584,67925.0,67924.0,0.7637]
[1722140963557,0.00484,67925.0,67924.0,0.7527]
[1722140963925,0.00584,67925.0,67924.0,0.7657]
[1722140964128,0.02894376,67925.0,67924.0,0.7657]
[1722140964334,0.02594376,67925.0,67924.0,0.7657]
[1722140964777,0.02694376,67925.0,67924.0,0.7747]
[1722140965145,0.02594376,67925.0,67924.0,0.7657]
[1722140965551,0.00384,67925.0,67924.0,0.7767]
[1722140968070,0.02694384,67925.0,67924.0,0.7767]
[1722140968886,0.00384,67925.0,67924.0,0.7767]
[1722140972251,0.02694423,67925.0,67924.0,0.7767]
[1722140973563,0.02694423,67925.0,67924.0,1.012257]
[1722140973765,0.00384,67925.0,67924.0,1.012257]
[1722140976998,0.02694379,67925.0,67924.0,1.012257]
[1722140977314,0.00384,67925.0,67924.0,1.012257]
[1722140980518,0.02694365,67925.0,67924.0,1.012257]
[1722140984787,0.02694365,67925.0,67924.0,1.16251657]
[1722140985162,0.00384,67925.0,67924.0,1.16251657]
[1722140988213,0.02694351,67925.0,67924.0,1.16251657]
[1722140988783,0.00384,67925.0,67924.0,1.16251657]
[1722140991810,0.02694346,67925.0,67924.0,1.16251657]
[1722140993539,0.00384,67925.0,67924.0,1.16251657]
[1722140996752,0.02694354,67925.0,67924.0,1.16251657]
[1722140997551,0.00384,67925.0,67924.0,1.16251657]
[1722141000421,0.00384,67925.0,67924.0,1.01781657]
[1722141000775,0.00384,67925.0,67924.0,0.043108]
[1722141000776,0.06514,67925.0,67924.0,0.043108]
[1722141000896,0.91201133,67925.0,67924.0,0.043108]
[1722141001097,1.14756433,67925.0,67924.0,0.043108]
[1722141001302,1.26888372,67925.0,67924.0,0.043108]
[1722141001758,1.51883591,67925.0,67924.0,0.032108]
[1722141002011,1.28328291,67925.0,67924.0,0.032108]
[1722141002225,1.51883591,67925.0,67924.0,0.035108]
[1722141002426,1.52562521,67925.0,67924.0,0.022108]
[1722141002831,1.52962521,67925.0,67924.0,0.022108]
[1722141003051,1.63036387,67925.0,67924.0,0.022108]
[1722141003261,1.70301923,67925.0,67924.0,0.022108]
[1722141003467,1.63056088,67925.0,67924.0,0.022108]
[1722141004085,1.64056088,67925.0,67924.0,0.023108]
[1722141004478,1.64056088,67925.0,67924.0,0.019108]
[1722141004479,1.39100788,67925.0,67924.0,0.019108]
[1722141004681,1.34951739,67925.0,67924.0,0.020108]
[1722141004875,1.42611739,67925.0,67924.0,0.020108]
[1722141005013,1.40300788,67925.0,67924.0,0.020108]
[1722141005210,1.39100788,67925.0,67924.0,0.019108]
[1722141005578,1.40300788,67925.0,67924.0,0.020108]
[1722141006352,1.65328672,67925.0,67924.0,0.020108]
[1722141006560,1.6516205,67925.0,67924.0,0.020108]
[1722141006725,1.65328672,67925.0,67924.0,0.020108]
[1722141006926,1.34563955,67925.0,67924.0,0.020108]
[1722141007164,1.19612666,67925.0,67924.0,0.020108]
[1722141007367,1.27272666,67925.0,67924.0,0.020108]
[1722141008813,1.50827966,67925.0,67924.0,0.020108]
[1722141009216,1.5815952,67925.0,67924.0,0.020108]
[1722141009412,1.58202,67925.0,67924.0,0.020108]
[1722141011333,1.50870453,67925.0,67924.0,0.020108]
[1722141012483,1.58225131,67925.0,67924.0,0.020108]
[1722141012683,1.60560418,67925.0,67924.0,0.020108]
[1722141013080,1.46879244,67925.0,67924.0,0.020108]
[1722141013286,1.060038,67922.0,67921.0,0.002]
[1722141013480,1.48115953,67922.0,67921.0,0.002]
[1722141013685,1.55473014,67922.0,67921.0,0.002]
[1722141013927,1.48115953,67922.0,67921.0,0.002]
[1722141014140,1.6314191,67922.0,67921.0,0.002]
[1722141014555,1.6594191,67922.0,67921.0,0.002]
[1722141014699,1.04989722,67909.0,67908.0,0.00462]
[1722141014901,1.0925413,67909.0,67908.0,0.00462]
[1722141015177,0.7803323,67909.0,67908.0,0.00462]
[1722141016365,0.02611256,67909.0,67908.0,0.00462]
[1722141016779,0.03011256,67909.0,67908.0,0.00462]
[1722141017012,0.03011256,67909.0,67908.0,0.06592]
[1722141017337,0.003,67909.0,67908.0,0.06592]
[1722141017542,0.00860613,67909.0,67908.0,0.184726]
[1722141017780,0.00860613,67909.0,67908.0,0.06692]
[1722141017980,0.001,67909.0,67908.0,0.06792]
[1722141018190,0.001,67909.0,67908.0,0.06692]
[1722141018385,0.001,67909.0,67908.0,0.65695]
[1722141019332,0.001,67909.0,67908.0,0.970062]
[1722141019671,0.001,67909.0,67908.0,0.969062]
[1722141019873,0.002,67909.0,67908.0,0.975062]
[1722141020215,0.002,67909.0,67908.0,0.365038]
[1722141020429,0.00166622,67916.0,67909.0,0.117803]
[1722141020430,0.00166622,67914.0,67909.0,0.117803]
[1722141020630,0.00166622,67914.0,67908.0,0.00462]
[1722141020838,0.02510919,67909.0,67908.0,0.131425]
[1722141020972,0.02510919,67909.0,67908.0,0.01262]
[1722141021176,0.00964433,67909.0,67908.0,0.122426]
[1722141021371,0.001,67909.0,67908.0,0.122426]
[1722141022068,0.001,67909.0,67908.0,0.00462]
[1722141022481,0.01065542,67909.0,67908.0,0.1359802]
[1722141022640,0.002,67909.0,67908.0,0.134426]
[1722141022841,0.01065705,67909.0,67908.0,0.134426]
[1722141023202,0.01065464,67909.0,67908.0,0.134426]
[1722141023864,0.01165464,67909.0,67908.0,0.02762]
[1722141024084,0.01165464,67909.0,67908.0,0.145426]
[1722141026508,0.01165464,67909.0,67908.0,0.381038]
[1722141026711,0.01165464,67909.0,67908.0,0.61665]
[1722141026909,0.003,67909.0,67908.0,0.61665]
[1722141027998,0.02610954,67909.0,67908.0,0.61665]
[1722141028996,0.003,67909.0,67908.0,0.61665]
[1722141032013,0.003,67909.0,67908.0,0.617574]
[1722141032215,0.02610942,67909.0,67908.0,0.617574]
[1722141032575,0.02694942,67909.0,67908.0,0.617574]
[1722141033319,0.00384,67909.0,67908.0,0.617574]
[1722141033724,0.00384,67909.0,67908.0,0.853186]
[1722141033923,0.00384,67909.0,67908.0,0.91911978]
[1722141034130,0.00384,67909.0,67908.0,0.918786]
[1722141035347,0.02694904,67909.0,67908.0,0.918786]
[1722141036346,0.02694904,67909.0,67908.0,1.075786]
[1722141036545,0.02694904,67909.0,67908.0,1.07611978]
[1722141036784,0.00384,67909.0,67908.0,1.075786]
[1722141037395,0.00284,67909.0,67908.0,1.064786]
[1722141037840,0.00084,67909.0,67908.0,1.052786]
[1722141038301,0.00084,67909.0,67908.0,1.05311978]
[1722141038703,0.00184,67909.0,67908.0,1.065786]
[1722141039031,0.00184,67909.0,67908.0,0.989186]
[1722141039221,0.00184,67909.0,67908.0,0.990186]
[1722141039555,0.00284,67909.0,67908.0,1.004186]
[1722141039767,0.02594835,67909.0,67908.0,1.004186]
[1722141041173,0.00284,67909.0,67908.0,1.004186]
[1722141048095,0.02594869,67909.0,67908.0,1.004186]
[1722141048235,0.08334,67909.0,67908.0,0.033544]
[1722141048630,0.09105958,67909.0,67908.0,0.15135]
[1722141049001,0.09005958,67909.0,67908.0,0.13735]
[1722141049822,0.15625958,67909.0,67908.0,0.15135]
[1722141049979,0.15625958,67909.0,67908.0,0.033544]
[1722141050367,0.8664713,67909.0,67908.0,0.033544]
[1722141051483,0.889583,67909.0,67908.0,0.033544]
[1722141051838,0.88925791,67909.0,67908.0,0.019544]
[1722141052126,0.8466595,67909.0,67908.0,0.029544]
[1722141052344,0.65364658,67909.0,67908.0,0.015544]
[1722141052754,0.41903758,67909.0,67908.0,0.023544]
[1722141052960,0.30123358,67909.0,67908.0,0.023544]
[1722141053100,0.41903758,67909.0,67908.0,0.023544]
[1722141053303,0.65464658,67909.0,67908.0,0.023544]
[1722141055016,0.65455329,67909.0,67908.0,0.023544]
[1722141055595,0.41894429,67909.0,67908.0,0.023544]
[1722141055928,0.41902726,67909.0,67908.0,0.023544]
[1722141056530,0.65463626,67909.0,67908.0,0.023544]
[1722141057374,0.63152456,67909.0,67908.0,0.023544]
[1722141058419,0.63135161,67909.0,67908.0,0.023544]
[1722141060158,0.86696061,67909.0,67908.0,0.023544]
[1722141060391,0.63135161,67909.0,67908.0,0.023544]
[1722141060571,0.65446331,67909.0,67908.0,0.023544]
[1722141061137,0.65359792,67909.0,67908.0,0.023544]
[1722141061636,0.65360265,67909.0,67908.0,0.023544]
[1722141062050,0.63049095,67909.0,67908.0,0.023544]
[1722141063217,0.86609995,67909.0,67908.0,0.023544]
[1722141063578,1.14435303,67909.0,67908.0,0.023544]
[1722141063940,1.14445885,67909.0,67908.0,0.023544]
[1722141064990,1.16757093,67909.0,67908.0,0.023544]
[1722141065391,1.14445885,67909.0,67908.0,0.023544]
[1722141065812,1.10180088,67909.0,67908.0,0.023544]
[1722141066134,1.14443231,67909.0,67908.0,0.023544]
[1722141067315,1.10180088,67909.0,67908.0,0.023544]
[1722141067524,1.14444985,67909.0,67908.0,0.023544]
[1722141067927,1.69639097,67909.0,67908.0,0.023544]
[1722141068135,1.69539097,67909.0,67908.0,0.015544]
[1722141068407,1.61849407,67909.0,67908.0,0.005544]
[1722141068540,1.70440753,67909.0,67908.0,0.005544]
[1722141068717,1.72654452,67909.0,67908.0,0.005544]
[1722141068921,1.3505003,67909.0,67908.0,0.005544]
[1722141069214,1.01684085,67909.0,67908.0,0.006544]
[1722141069596,1.01484085,67909.0,67908.0,0.006544]
[1722141069817,1.01484085,67909.0,67908.0,0.007544]
[1722141070018,1.02084085,67909.0,67908.0,0.007544]
[1722141070228,1.02017463,67909.0,67908.0,0.007544]
[1722141070363,0.97819188,67909.0,67908.0,0.007544]
[1722141070558,1.01854979,67909.0,67908.0,0.007544]
[1722141070797,0.97819188,67909.0,67908.0,0.007544]
[1722141070997,1.012201,67909.0,67908.0,0.006544]
[1722141071392,1.019201,67909.0,67908.0,0.007544]
[1722141071862,0.783592,67909.0,67908.0,0.007544]
[1722141072302,1.019201,67909.0,67908.0,0.007544]
[1722141072482,1.04064813,67909.0,67908.0,0.007544]
[1722141072688,1.04226688,67909.0,67908.0,0.007544]
[1722141073304,1.01915353,67909.0,67908.0,0.007544]
[1722141073659,1.01938543,67909.0,67908.0,0.007544]
[1722141076000,1.25499443,67909.0,67908.0,0.007544]
[1722141076894,1.21113466,67909.0,67908.0,0.007544]
[1722141077057,1.25484831,67909.0,67908.0,0.007544]
[1722141077849,1.33008846,67909.0,67908.0,0.007544]
[1722141079205,1.56569746,67909.0,67908.0,0.007544]
[1722141079796,1.33008846,67909.0,67908.0,0.007544]
[1722141080622,1.25342195,67909.0,67908.0,0.007544]
[1722141080833,1.35207274,67909.0,67908.0,0.007544]
[1722141081222,1.35207274,67909.0,67888.0,0.01]
[1722141081223,0.14746622,67899.0,67888.0,0.01]
[1722141081385,0.7479236,67899.0,67888.0,0.01]
[1722141081589,1.3192116,67899.0,67888.0,0.01]
[1722141081783,1.33461079,67899.0,67888.0,0.01]
[1722141082226,1.57025479,67899.0,67888.0,0.01]
[1722141082478,1.57025479,67899.0,67898.0,0.014]
[1722141083253,1.60269011,67899.0,67898.0,0.014]
[1722141083457,1.72247531,67899.0,67898.0,0.015]
[1722141083804,1.73647531,67899.0,67898.0,0.01]
[1722141084005,1.60021574,67899.0,67898.0,0.01]
[1722141084209,1.61421574,67899.0,67898.0,0.011]
[1722141084536,1.62333644,67899.0,67898.0,0.011]
[1722141084735,1.61421574,67899.0,67898.0,0.011]
[1722141085192,1.72931574,67899.0,67898.0,0.011]
[1722141086550,1.72948907,67899.0,67898.0,0.011]
[1722141087105,1.62948907,67899.0,67898.0,0.011]
[1722141087675,1.77974864,67899.0,67898.0,0.011]
[1722141088031,1.70317836,67899.0,67898.0,0.011]
[1722141088182,1.77953163,67899.0,67898.0,0.011]
[1722141088584,1.78822294,67899.0,67898.0,0.011]
[1722141088909,1.73796337,67899.0,67898.0,0.011]
[1722141089408,1.97360737,67899.0,67898.0,0.011]
[1722141089590,1.98460737,67899.0,67898.0,0.011]
[1722141089908,1.98510612,67899.0,67898.0,0.011]
[1722141090108,2.17680612,67899.0,67898.0,0.011]
[1722141090439,2.13536801,67899.0,67898.0,0.011]
[1722141090610,1.7725851,67899.0,67898.0,0.011]
[1722141090748,1.7725851,67899.0,67898.0,0.006]
[1722141091184,2.0082291,67899.0,67898.0,0.006]
[1722141093030,1.77274364,67899.0,67898.0,0.006]
[1722141093236,2.00838261,67899.0,67898.0,0.006]
[1722141093385,1.98526195,67899.0,67898.0,0.006]
[1722141093593,2.03742381,67899.0,67898.0,0.006]
[1722141093789,1.80177981,67899.0,67898.0,0.006]
[1722141094402,2.03742381,67899.0,67898.0,0.006]
[1722141096218,2.06054478,67899.0,67898.0,0.006]
[1722141097021,2.05887856,67899.0,67898.0,0.006]
[1722141097255,2.03575759,67899.0,67898.0,0.006]
[1722141097508,1.99375759,67899.0,67898.0,0.005]
[1722141097707,2.02342381,67899.0,67898.0,0.006]
[1722141098091,2.02342381,67899.0,67898.0,0.005]
[1722141098407,2.02268951,67899.0,67898.0,0.006924]
[1722141098630,2.03668951,67899.0,67898.0,0.006924]
[1722141098941,2.03752951,67899.0,67898.0,0.006924]
[1722141099685,2.03797034,67899.0,67898.0,0.006924]
[1722141100088,1.96133058,67899.0,67898.0,0.006924]
[1722141100312,2.01011271,67899.0,67898.0,0.005924]
[1722141100475,2.04723418,67899.0,67898.0,0.005924]
[1722141100829,2.02411271,67899.0,67898.0,0.005924]
[1722141101054,2.01011271,67899.0,67898.0,0.005924]
[1722141101420,2.02411271,67899.0,67898.0,0.005924]
[1722141101823,1.78846871,67899.0,67898.0,0.005924]
[1722141102389,2.02411271,67899.0,67898.0,0.005924]
[1722141105150,2.02244649,67899.0,67898.0,0.005924]
[1722141105598,2.04711271,67899.0,67898.0,0.005924]
[1722141105950,1.12451722,67889.0,67888.0,0.01]
[1722141106175,1.5389304,67889.0,67888.0,0.01]
[1722141106405,1.66983734,67889.0,67888.0,0.01]
[1722141106628,1.68523653,67889.0,67888.0,0.01]
[1722141107443,1.69923653,67889.0,67888.0,0.01]
[1722141108001,1.69905779,67889.0,67888.0,0.01]
[1722141108445,1.73617946,67889.0,67888.0,0.01]
[1722141109187,1.88643903,67889.0,67888.0,0.01]
[1722141109407,1.76524574,67889.0,67888.0,0.01]
[1722141109783,1.88627601,67889.0,67888.0,0.01]
[1722141110016,1.97780207,67889.0,67888.0,0.01]
[1722141110193,1.97780207,67889.0,67879.0,0.0155553]
[1722141110194,0.14186622,67880.0,67879.0,0.0155553]
[1722141110383,0.14186622,67880.0,67863.0,0.009119]
[1722141110384,0.11954722,67865.0,67863.0,0.009119]
[1722141110624,0.35531322,67864.0,67863.0,0.009119]
[1722141110813,0.87103077,67864.0,67863.0,0.009119]
[1722141111017,1.05784753,67864.0,67863.0,0.009119]
[1722141111230,0.98051945,67864.0,67863.0,0.009119]
[1722141111927,0.79132773,67864.0,67863.0,0.009119]
[1722141112128,1.02709273,67864.0,67863.0,0.009119]
[1722141112424,0.79299395,67864.0,67863.0,0.009119]
[1722141112564,0.79280889,67864.0,67863.0,0.009119]
[1722141112996,0.8299393,67864.0,67863.0,0.009119]
[1722141113192,0.8159393,67864.0,67863.0,0.009119]
[1722141113402,0.8299393,67864.0,67863.0,0.009119]
[1722141113611,0.8429393,67864.0,67863.0,0.009119]
[1722141113815,0.6071743,67864.0,67863.0,0.009119]
[1722141114020,0.09033472,67864.0,67863.0,0.151919]
[1722141114391,0.10433472,67864.0,67863.0,0.269803]
[1722141114593,0.05961909,67864.0,67863.0,0.269803]
[1722141114798,0.05961909,67864.0,67863.0,0.151919]
[1722141115001,0.03613041,67864.0,67863.0,0.151919]
[1722141115403,0.04813041,67864.0,67863.0,0.151919]
[1722141115611,0.04813041,67864.0,67863.0,0.269803]
[1722141115728,0.04813041,67864.0,67863.0,0.151919]
[1722141115729,0.05766956,67864.0,67863.0,0.151919]
[1722141115922,0.03513041,67864.0,67863.0,0.151919]
[1722141116129,0.05565553,67864.0,67863.0,0.151919]
[1722141116358,0.04613041,67864.0,67863.0,0.151919]
[1722141116772,0.04613041,67864.0,67863.0,0.505572]
[1722141117001,0.04613041,67864.0,67863.0,0.269803]